fUSD/lending_fUSD_20260121
["ID","MTS","AMOUNT","RATE_DAILY","PERIOD"]
[402950753,1769013043957,-801.83018575,0.0001799,2]
[402950754,1769013043967,-527.33,0.00017995,2]
[402950755,1769013043977,-151.0,0.00017997,2]
[402950756,1769013043989,-391.13615638,0.00017998,2]
[402950757,1769013043999,-248.78771965,0.00017999,2]
[402950758,1769013044008,-300.0,0.00017999,2]
[402950759,1769013044017,-300.0,0.00017999,2]
[402950760,1769013044027,-666.0,0.00017999,2]
[402950761,1769013044036,-300.0,0.00017999,2]
[402950762,1769013044046,-150.0,0.00017999,2]
[402950763,1769013044055,-150.0,0.00017999,2]
[402950764,1769013044065,-3001052.39401018,0.00018,2]
[402950765,1769013044126,-147.67284742,0.00018,2]
[402950766,1769013044158,-2511.24688297,0.00018,2]
[402950767,1769013044192,-635.33511852,0.00018,2]
[402950768,1769013044243,-1604.53333628,0.00018,2]
[402950769,1769013044254,-948.63117432,0.00018,2]
[402950770,1769013044265,-3780.06401493,0.00018,2]
[402950771,1769013044278,-3485.780651,0.00018,2]
[402950772,1769013044289,-920.76651104,0.00018,2]
[402950773,1769013045446,-4733.90805572,0.00018,2]
[402950774,1769013045458,-359.45241563,0.00018,2]
[402950775,1769013045469,-644.20590704,0.00018,2]
[402950776,1769013045481,-1223.59902822,0.00018,2]
[402950777,1769013045491,-3981.30851948,0.00018,2]
[402950778,1769013045502,-9436.09999998,0.00018,2]
[402950781,1769013047298,-3674.35918412,0.00017075,2]
[402950782,1769013047308,-55699.69870084,0.00018,2]
[402950783,1769013047360,-19103.32177745,0.00018,2]
[402950784,1769013047371,-287.80291528,0.00018,2]
[402950785,1769013048689,-354.5174439,0.0001682,2]
[402950786,1769013048699,-32692.44534129,0.00018,2]
[402950787,1769013048710,-1764.57105184,0.00018,2]
[402950788,1769013048721,-3713.08295613,0.00018,2]
[402950789,1769013048771,-18770.97929346,0.00018,2]
[402950790,1769013048782,-400.0,0.00018,2]
[402950791,1769013048792,-553.29706463,0.00018,2]
[402950792,1769013048803,-1159.3,0.00018,2]
[402950793,1769013048827,-1295.7816584,0.00018,2]
[402950794,1769013048838,-4516.21416499,0.00018,2]
[402950795,1769013048850,-400.0,0.00018,2]
[402950796,1769013048861,-7952.77,0.00018,2]
[402950797,1769013048872,-1000.0,0.00018,2]
[402950798,1769013048913,-522.02000001,0.00018,2]
[402950800,1769013079988,1350.0,0.000159,2]
[402950803,1769013134881,8650.01,0.00015972,2]
[402950804,1769013134910,10000.01,0.00015972,2]
[402950805,1769013134941,10000.01,0.00015972,2]
[402950806,1769013134970,10000.01,0.00015972,2]
[402950807,1769013134999,10000.01,0.00015972,2]
[402950808,1769013135028,10000.01,0.00015972,2]
[402950809,1769013135058,10000.01,0.00015972,2]
[402950810,1769013135086,10000.01,0.00015972,2]
[402950811,1769013135116,10000.01,0.00015972,2]
[402950812,1769013135146,664053.28859501,0.00015972,2]
[402950813,1769013135179,247296.62140499,0.00015972,2]
[402950824,1769013321489,1000.0,0.00016351,2]
[402950825,1769013321824,1000.0,0.00016351,2]
[402950826,1769013323128,1000.0,0.00016351,2]
[402950827,1769013369342,4167.57,0.00016341,2]
[402950828,1769013370424,200.0,0.00016244,2]
[402950838,1769013704250,2632.44,0.00016203,2]
[402950839,1769013704273,139.54,0.00016203,2]
[402950840,1769013744465,-490.26998,0.000164,2]
[402950841,1769013744487,-282.30064646,0.00016411,2]
[402950843,1769013776745,1321.87,0.00016064,2]
[402950844,1769013805627,8678.14,0.00016057,2]
[402950845,1769013805649,7971.04,0.00016057,2]
[402950846,1769013847306,9084.71,0.00013279,2]
[402950847,1769014045476,500.0,0.00016015,2]
[402950853,1769014232203,-250.0,0.00016416,2]
[402950854,1769014232212,-317.69935354,0.00016449,2]
[402950855,1769014232222,-300.0,0.00016449,2]
[402950856,1769014232231,-550.0,0.00016483,2]
[402950857,1769014232240,-300.0,0.00016483,2]
[402950858,1769014232249,-1200.0,0.00016483,2]
[402950859,1769014232259,-500.0,0.00016484,2]
[402950860,1769014232268,-500.0,0.00016484,2]
[402950861,1769014232277,-500.0,0.00016484,2]
[402950862,1769014232287,-500.0,0.00016484,2]
[402950863,1769014232296,-500.0,0.00016484,2]
[402950864,1769014232304,-500.0,0.00016484,2]
[402950865,1769014232312,-500.0,0.00016484,2]
[402950866,1769014232321,-500.0,0.00016484,2]
[402950867,1769014232329,-500.0,0.00016484,2]
[402950868,1769014232339,-500.0,0.00016484,2]
[402950869,1769014232348,-500.0,0.00016486,2]
[402950870,1769014232357,-500.0,0.00016486,2]
[402950871,1769014232367,-500.0,0.00016486,2]
[402950872,1769014232377,-163.26702471,0.00016486,2]
[402950873,1769014232386,-502.32638867,0.00016486,2]
[402950874,1769014232396,-500.0,0.00016486,2]
[402950875,1769014232405,-500.0,0.00016486,2]
[402950876,1769014232415,-414.0821579,0.00016486,2]
[402950877,1769014232424,-188.20213014,0.00016486,2]
[402950878,1769014232433,-500.0,0.00016486,2]
[402950879,1769014232443,-249.84105612,0.00016486,2]
[402950880,1769014232452,-500.0,0.00016486,2]
[402950903,1769014232703,-423.09867107,0.00016486,2]
[402950905,1769014232712,-500.0,0.00016486,2]
[402950907,1769014232722,-391.13615638,0.00016486,2]
[402950909,1769014232732,-298.61716944,0.00016486,2]
[402950911,1769014232743,-500.0,0.00016486,2]
[402950913,1769014232753,-500.0,0.00016486,2]
[402950915,1769014232763,-366.59852564,0.00016486,2]
[402950917,1769014232772,-249.28950426,0.00016486,2]
[402950919,1769014232781,-1102.14,0.00016486,2]
[402950921,1769014232790,-292.36869297,0.00016489,2]
[402950923,1769014232799,-150.00555167,0.00016577,2]
[402950925,1769014232808,-1818.79,0.00016629,2]
[402950927,1769014232817,-150.99,0.00016629,2]
[402950929,1769014232826,-150.99,0.00016629,2]
[402950931,1769014232836,-21548.51,0.00016629,2]
[402950933,1769014232845,-833.62,0.00016629,2]
[402950935,1769014232858,-9999.99,0.00016629,2]
[402950937,1769014232870,-200.0,0.00016645,2]
[402950939,1769014232880,-635.5126482,0.00016691,2]
[402950941,1769014232889,-589.28575739,0.00016714,2]
[402950943,1769014232898,-1102.14,0.0001676,2]
[402950945,1769014232908,-3700.0,0.000168,6]
[402950947,1769014232919,-500.0,0.00016806,2]
[402950949,1769014232928,-151.0,0.00016842,2]
[402950951,1769014232938,-1161.0,0.00016852,2]
[402950953,1769014232948,-12205.42,0.00016852,2]
[402950955,1769014232957,-1321.87,0.00016867,2]
[402950957,1769014232967,-702.71650943,0.00016875,2]
[402950959,1769014232976,-1416.0,0.00016885,2]
[402950961,1769014232986,-1199.0,0.00016894,2]
[402950963,1769014232996,-7400.0,0.000169,6]
[402950965,1769014233007,-990.0,0.00016914,2]
[402950967,1769014233016,-773.0,0.00016927,2]
[402950969,1769014233026,-578.20924308,0.0001699,2]
[402950971,1769014233036,-322.6107,0.0001699,2]
[402950973,1769014233047,-174.61919141,0.0001699,2]
[402950975,1769014233057,-194.72792766,0.0001699,2]
[402950977,1769014233066,-1651.11,0.00017,2]
[402950979,1769014233076,-1102.14,0.00017034,2]
[402950981,1769014233085,-354.5174439,0.00017036,2]
[402950983,1769014233094,-768.02304485,0.00017063,2]
[402950985,1769014233106,-12726.15605091,0.00017071,2]
[402950987,1769014233116,-1650.544,0.00017072,2]
[402950989,1769014233125,-200.971,0.00017072,2]
[402950991,1769014233135,-198.88482048,0.00017073,2]
[402950993,1769014233145,-198.88482048,0.00017073,2]
[402950995,1769014233154,-297.86756787,0.00017073,2]
[402950997,1769014233163,-10573.91805874,0.00017073,2]
[402950999,1769014233178,-470.98577775,0.00017074,2]
[402951001,1769014233188,-500.0,0.0001708,2]
[402951003,1769014233198,-253.0,0.00017134,2]
[402951005,1769014233208,-533.88981491,0.00017152,2]
[402951007,1769014233217,-500.0,0.00017152,2]
[402951009,1769014233226,-500.0,0.00017152,2]
[402951011,1769014233236,-500.0,0.00017152,2]
[402951013,1769014233246,-500.0,0.00017152,2]
[402951015,1769014233256,-500.0,0.00017152,2]
[402951017,1769014233265,-500.0,0.00017152,2]
[402951019,1769014233274,-500.0,0.00017152,2]
[402951021,1769014233284,-500.0,0.00017152,2]
[402951023,1769014233293,-250.0,0.00017152,2]
[402951025,1769014233302,-500.0,0.00017152,2]
[402951027,1769014233311,-250.0,0.00017152,2]
[402951029,1769014233320,-500.0,0.00017152,2]
[402951031,1769014233329,-250.0,0.00017152,2]
[402951033,1769014233338,-500.0,0.00017152,2]
[402951035,1769014233350,-250.0,0.00017152,2]
[402951037,1769014233359,-500.0,0.00017152,2]
[402951038,1769014233368,-250.0,0.00017152,2]
[402951040,1769014233378,-500.0,0.00017152,2]
[402951042,1769014233387,-250.0,0.00017152,2]
[402951044,1769014233397,-250.0,0.00017152,2]
[402951045,1769014233406,-250.0,0.00017152,2]
[402951047,1769014233415,-250.0,0.00017152,2]
[402951049,1769014233424,-2000.0,0.00017152,2]
[402951050,1769014233434,-250.0,0.00017152,2]
[402951051,1769014233443,-508.92671197,0.00017152,2]
[402951052,1769014233453,-2000.0,0.00017152,2]
[402951053,1769014233462,-250.0,0.00017152,2]
[402951054,1769014233472,-2000.0,0.00017152,2]
[402951055,1769014233481,-250.0,0.00017152,2]
[402951056,1769014233490,-2000.0,0.00017152,2]
[402951057,1769014233500,-250.0,0.00017152,2]
[402951058,1769014233510,-2000.0,0.00017152,2]
[402951059,1769014233520,-2000.0,0.00017152,2]
[402951060,1769014233529,-250.0,0.00017152,2]
[402951061,1769014233539,-2000.0,0.00017152,2]
[402951062,1769014233549,-2000.0,0.00017152,2]
[402951063,1769014233558,-250.0,0.00017152,2]
[402951064,1769014233568,-1234.77072154,0.00017152,2]
[402951065,1769014233578,-250.0,0.00017152,2]
[402951066,1769014233588,-250.0,0.00017152,2]
[402951067,1769014233599,-250.0,0.00017152,2]
[402951068,1769014233608,-250.0,0.00017152,2]
[402951069,1769014233618,-250.0,0.00017152,2]
[402951070,1769014233628,-151.0,0.00017152,2]
[402951071,1769014233638,-250.0,0.00017152,2]
[402951072,1769014233647,-151.0,0.00017152,2]
[402951073,1769014233657,-250.0,0.00017152,2]
[402951074,1769014233668,-151.0,0.00017152,2]
[402951075,1769014233677,-250.0,0.00017152,2]
[402951076,1769014233687,-151.0,0.00017152,2]
[402951077,1769014233696,-250.0,0.00017152,2]
[402951078,1769014233706,-151.0,0.00017152,2]
[402951079,1769014233716,-151.0,0.00017152,2]
[402951080,1769014233725,-250.0,0.00017152,2]
[402951081,1769014233734,-151.0,0.00017152,2]
[402951082,1769014233744,-250.0,0.00017152,2]
[402951083,1769014233754,-151.0,0.00017152,2]
[402951084,1769014233763,-250.0,0.00017152,2]
[402951085,1769014233773,-151.0,0.00017152,2]
[402951086,1769014233784,-250.0,0.00017152,2]
[402951087,1769014233794,-151.0,0.00017152,2]
[402951088,1769014233804,-151.0,0.00017152,2]
[402951089,1769014233814,-250.0,0.00017152,2]
[402951090,1769014233823,-151.0,0.00017152,2]
[402951091,1769014233833,-250.0,0.00017152,2]
[402951092,1769014233843,-151.0,0.00017152,2]
[402951093,1769014233854,-250.0,0.00017152,2]
[402951094,1769014233867,-250.0,0.00017152,2]
[402951095,1769014233876,-250.0,0.00017152,2]
[402951096,1769014233886,-376.37345362,0.00017152,2]
[402951097,1769014233895,-165.23,0.00017163,2]
[402951098,1769014233906,-12726.15605083,0.00017163,2]
[402951099,1769014233915,-10573.91805874,0.00017165,2]
[402951100,1769014233926,-170.79,0.00017171,2]
[402951101,1769014233936,-155.0,0.00017172,2]
[402951102,1769014233945,-545.74415025,0.00017172,2]
[402951103,1769014233955,-150.0,0.00017172,2]
[402951104,1769014233964,-24137.19702782,0.00017173,2]
[402951105,1769014233977,-8498.85198423,0.00017173,2]
[402951106,1769014233993,-290.0,0.00017173,2]
[402951107,1769014234004,-300.10806973,0.00017173,2]
[402951108,1769014234058,-12441.10026289,0.00017173,2]
[402951109,1769014234159,-353.8945,0.00017173,2]
[402951110,1769014234253,-23932.77926625,0.00017173,2]
[402951127,1769014238743,-3981.64274645,0.00017173,2]
[402951128,1769014238782,-347.46788659,0.00017173,2]
[402951129,1769014238794,-5717.06548,0.00017173,2]
[402951130,1769014238806,-919999.89277604,0.00017173,2]
[402951131,1769014238815,-500.94467747,0.00017173,2]
[402951132,1769014238826,-279.18333591,0.00017173,2]
[402951133,1769014238839,-167.87587796,0.00017173,2]
[402951134,1769014238849,-500.0,0.00017173,2]
[402951135,1769014238862,-500.0,0.00017173,2]
[402951136,1769014238874,-500.0,0.00017173,2]
[402951137,1769014238885,-500.0,0.00017173,2]
[402951138,1769014238894,-500.0,0.00017173,2]
[402951139,1769014238904,-500.0,0.00017173,2]
[402951140,1769014238915,-500.0,0.00017173,2]
[402951141,1769014238925,-500.0,0.00017173,2]
[402951142,1769014238935,-500.0,0.00017173,2]
[402951143,1769014238947,-500.0,0.00017173,2]
[402951144,1769014238957,-500.0,0.00017173,2]
[402951145,1769014238967,-500.0,0.00017173,2]
[402951146,1769014238978,-500.44081703,0.00017173,2]
[402951147,1769014238988,-605.56754048,0.00017173,2]
[402951148,1769014238999,-500.0,0.00017173,2]
[402951149,1769014239010,-500.0,0.00017173,2]
[402951150,1769014239020,-500.0,0.00017173,2]
[402951151,1769014239030,-500.54717654,0.00017173,2]
[402951152,1769014239040,-500.0,0.00017173,2]
[402951153,1769014239049,-500.0,0.00017173,2]
[402951154,1769014239059,-500.0,0.00017173,2]
[402951155,1769014239069,-500.0,0.00017173,2]
[402951156,1769014239079,-166.15547505,0.00017173,2]
[402951157,1769014239089,-500.0,0.00017173,2]
[402951158,1769014239102,-500.0,0.00017173,2]
[402951159,1769014239112,-500.0,0.00017173,2]
[402951160,1769014239122,-500.0,0.00017173,2]
[402951161,1769014239133,-500.0,0.00017173,2]
[402951162,1769014239143,-500.0,0.00017173,2]
[402951163,1769014239153,-163.65383635,0.00017173,2]
[402951164,1769014239163,-500.0,0.00017173,2]
[402951165,1769014239174,-151.0,0.00017177,2]
[402951166,1769014239184,-19643.64662493,0.0001718,2]
[402951167,1769014239195,-169.96,0.00017239,2]
[402951168,1769014239205,-446.36549545,0.00017248,2]
[402951169,1769014239215,-354.5174439,0.00017253,2]
[402951170,1769014239224,-150.09,0.00017255,2]
[402951171,1769014239234,-12726.15605083,0.00017255,2]
[402951172,1769014239244,-10573.91805874,0.00017257,2]
[402951173,1769014239254,-534.55345717,0.00017263,2]
[402951174,1769014239264,-500.79549494,0.00017273,2]
[402951175,1769014239273,-500.0,0.00017273,2]
[402951176,1769014239283,-550.70733566,0.00017273,2]
[402951177,1769014239292,-500.0,0.00017273,2]
[402951178,1769014239302,-500.0,0.00017273,2]
[402951179,1769014239311,-250.0,0.00017273,2]
[402951180,1769014239321,-500.12560695,0.00017273,2]
[402951181,1769014239330,-500.0,0.00017273,2]
[402951182,1769014239339,-500.0,0.00017273,2]
[402951183,1769014239349,-159.96427776,0.00017273,2]
[402951184,1769014239360,-500.0,0.00017273,2]
[402951185,1769014239370,-500.15189466,0.00017273,2]
[402951186,1769014239379,-500.0,0.00017273,2]
[402951187,1769014239388,-500.0,0.00017273,2]
[402951188,1769014239398,-500.0,0.00017273,2]
[402951189,1769014239408,-500.0,0.00017273,2]
[402951190,1769014239418,-500.0,0.00017273,2]
[402951191,1769014239431,-500.0,0.00017273,2]
[402951192,1769014239442,-500.0,0.00017273,2]
[402951193,1769014239451,-500.0,0.00017273,2]
[402951194,1769014239461,-296.32701866,0.00017298,2]
[402951195,1769014239470,-1102.14,0.00017308,2]
[402951196,1769014239481,-500.0,0.00017315,2]
[402951197,1769014239492,-500.0,0.00017315,2]
[402951198,1769014239504,-10573.91805874,0.00017349,2]
[402951199,1769014239514,-11100.0,0.000174,6]
[402951200,1769014239523,-10573.91805874,0.00017441,2]
[402951201,1769014239533,-354.5174439,0.00017469,2]
[402951202,1769014239542,-466.0,0.00017478,2]
[402951203,1769014239551,-14900.0,0.000175,6]
[402951204,1769014239561,-10573.91805874,0.00017532,2]
[402951205,1769014239570,-181.08010149,0.00017538,2]
[402951206,1769014239580,-247.61564433,0.00017538,2]
[402951207,1769014239590,-466.0,0.00017565,2]
[402951208,1769014239601,-1102.14,0.00017582,2]
[402951209,1769014239620,-18600.0,0.000176,6]
[402951210,1769014239631,-10573.91805874,0.00017624,2]
[402951211,1769014239641,-564.1323032,0.00017648,2]
[402951212,1769014239651,-1488.7540736,0.00017648,2]
[402951213,1769014239662,-2626.33865348,0.00017648,2]
[402951214,1769014239672,-3928.84555461,0.00017648,2]
[402951215,1769014239682,-5315.8644,0.00017648,2]
[402951216,1769014239691,-1321.87,0.00017671,2]
[402951217,1769014239702,-354.5174439,0.00017685,2]
[402951218,1769014239711,-553.64373807,0.000177,2]
[402951219,1769014239721,-3700.0,0.000177,6]
[402951220,1769014239731,-10573.91805874,0.00017716,2]
[402951221,1769014239740,-512.65188463,0.00017721,2]
[402951222,1769014239749,-1000.0,0.00017721,2]
[402951223,1769014239759,-1001.85923341,0.00017721,2]
[402951224,1769014239770,-1000.0,0.00017721,2]
[402951225,1769014239780,-504.22603028,0.00017721,2]
[402951226,1769014239790,-1000.0,0.00017721,2]
[402951227,1769014239800,-1000.0,0.00017721,2]
[402951228,1769014239810,-1000.0,0.00017721,2]
[402951229,1769014239819,-501.03676172,0.00017721,2]
[402951230,1769014239828,-500.47917453,0.00017721,2]
[402951231,1769014239838,-906.24694652,0.00017721,2]
[402951232,1769014239848,-1001.39035999,0.00017721,2]
[402951233,1769014239861,-1000.0,0.00017721,2]
[402951234,1769014239872,-1000.0,0.00017721,2]
[402951235,1769014239883,-1000.0,0.00017721,2]
[402951236,1769014239894,-1000.0,0.00017721,2]
[402951237,1769014239907,-1000.0,0.00017721,2]
[402951238,1769014239917,-1000.0,0.00017721,2]
[402951239,1769014239927,-1000.0,0.00017721,2]
[402951240,1769014239937,-1000.0,0.00017721,2]
[402951241,1769014239948,-500.58756359,0.00017721,2]
[402951242,1769014239958,-837.2193742,0.00017721,2]
[402951243,1769014239968,-1000.0,0.00017721,2]
[402951244,1769014239977,-466.0,0.00017752,2]
[402951245,1769014239987,-679.29564048,0.00017774,2]
[402951246,1769014239998,-466.0,0.00017774,2]
[402951247,1769014240009,-3700.0,0.000178,6]
[402951248,1769014240019,-152.14592756,0.00017801,2]
[402951249,1769014240029,-575.71488184,0.00017808,2]
[402951250,1769014240039,-500.0,0.00017808,2]
[402951251,1769014240047,-500.0,0.00017808,2]
[402951252,1769014240058,-500.0,0.00017808,2]
[402951253,1769014240067,-500.0,0.00017808,2]
[402951254,1769014240077,-150.0,0.00017808,2]
[402951255,1769014240086,-150.0,0.00017808,2]
[402951256,1769014240095,-150.65315728,0.00017808,2]
[402951257,1769014240107,-500.0,0.00017808,2]
[402951258,1769014240116,-221.17629805,0.00017808,2]
[402951259,1769014240127,-500.0,0.00017808,2]
[402951261,1769014240137,-500.0,0.00017808,2]
[402951263,1769014240147,-655.0,0.00017808,2]
[402951264,1769014240156,-500.0,0.00017808,2]
[402951265,1769014240166,-500.0,0.00017808,2]
[402951266,1769014240176,-500.0,0.00017808,2]
[402951267,1769014240185,-250.57177377,0.00017808,2]
[402951268,1769014240195,-500.0,0.00017808,2]
[402951269,1769014240205,-500.0,0.00017808,2]
[402951270,1769014240215,-150.0,0.00017808,2]
[402951271,1769014240225,-150.0,0.00017808,2]
[402951272,1769014240236,-150.0,0.00017808,2]
[402951274,1769014240246,-500.0,0.00017808,2]
[402951276,1769014240255,-500.0,0.00017808,2]
[402951277,1769014240265,-472.0,0.00017808,2]
[402951278,1769014240275,-500.0,0.00017808,2]
[402951279,1769014240284,-150.0,0.00017808,2]
[402951280,1769014240294,-150.0,0.00017808,2]
[402951282,1769014240303,-150.0,0.00017808,2]
[402951283,1769014240313,-500.0,0.00017808,2]
[402951284,1769014240323,-500.0,0.00017808,2]
[402951285,1769014240333,-150.0,0.00017808,2]
[402951286,1769014240343,-152.84284681,0.00017808,2]
[402951287,1769014240354,-158.4322296,0.00017808,2]
[402951288,1769014240364,-150.0,0.00017808,2]
[402951289,1769014240374,-461.0,0.00017808,2]
[402951290,1769014240384,-150.0,0.00017808,2]
[402951291,1769014240394,-500.0,0.00017808,2]
[402951292,1769014240405,-500.0,0.00017808,2]
[402951293,1769014240415,-500.0,0.00017808,2]
[402951294,1769014240425,-10573.91805874,0.00017808,2]
[402951295,1769014240435,-1000.0,0.00017821,2]
[402951296,1769014240445,-731.45242292,0.00017821,2]
[402951297,1769014240456,-1000.0,0.00017821,2]
[402951298,1769014240467,-1000.0,0.00017821,2]
[402951299,1769014240477,-500.0,0.00017821,2]
[402951300,1769014240487,-150.00555167,0.00017837,2]
[402951301,1769014240497,-200.0,0.00017856,2]
[402951302,1769014240507,-1102.14,0.00017856,2]
[402951303,1769014240518,-500.0,0.00017863,2]
[402951304,1769014240528,-500.0,0.00017863,2]
[402951305,1769014240538,-500.0,0.00017863,2]
[402951306,1769014240548,-500.0,0.00017863,2]
[402951307,1769014240558,-150.0,0.00017863,2]
[402951308,1769014240568,-150.0,0.00017863,2]
[402951309,1769014240579,-500.0,0.00017863,2]
[402951310,1769014240589,-500.0,0.00017863,2]
[402951311,1769014240600,-500.0,0.00017863,2]
[402951312,1769014240614,-655.0,0.00017863,2]
[402951313,1769014240624,-500.0,0.00017863,2]
[402951314,1769014240634,-500.0,0.00017863,2]
[402951315,1769014240644,-500.0,0.00017863,2]
[402951316,1769014240654,-500.0,0.00017863,2]
[402951317,1769014240664,-500.0,0.00017863,2]
[402951318,1769014240674,-224.73746907,0.00017863,2]
[402951319,1769014240684,-150.0,0.00017863,2]
[402951320,1769014240693,-150.0,0.00017863,2]
[402951321,1769014240703,-500.0,0.00017863,2]
[402951322,1769014240712,-500.0,0.00017863,2]
[402951323,1769014240722,-472.0,0.00017863,2]
[402951324,1769014240731,-500.0,0.00017863,2]
[402951325,1769014240741,-500.0,0.00017863,2]
[402951326,1769014240751,-150.0,0.00017863,2]
[402951327,1769014240761,-500.0,0.00017863,2]
[402951328,1769014240771,-150.0,0.00017863,2]
[402951329,1769014240780,-461.0,0.00017863,2]
[402951330,1769014240789,-150.0,0.00017863,2]
[402951331,1769014240799,-500.0,0.00017863,2]
[402951332,1769014240809,-500.0,0.00017863,2]
[402951333,1769014240818,-500.0,0.00017863,2]
[402951334,1769014240828,-10000.0,0.000179,2]
[402951335,1769014240838,-847.9928,0.000179,2]
[402951336,1769014240848,-33234.7286,0.000179,2]
[402951337,1769014240860,-649.71557823,0.000179,3]
[402951338,1769014240874,-25000.0,0.000179,3]
[402951339,1769014240884,-177.51312027,0.000179,2]
[402951340,1769014240895,-3700.0,0.000179,6]
[402951341,1769014240905,-195.92069658,0.000179,3]
[402951342,1769014240915,-816.87543449,0.000179,2]
[402951343,1769014240924,-229.77469211,0.000179,2]
[402951344,1769014240934,-5137.89368202,0.000179,2]
[402951346,1769014240944,-10573.91805874,0.000179,2]
[402951347,1769014240954,-500.0,0.000179,2]
[402951348,1769014240964,-500.0,0.000179,2]
[402951349,1769014240974,-500.0,0.000179,2]
[402951350,1769014240984,-500.0,0.000179,2]
[402951351,1769014240993,-500.0,0.000179,2]
[402951352,1769014241003,-500.0,0.000179,2]
[402951353,1769014241013,-383.17910855,0.000179,2]
[402951354,1769014241023,-354.5174439,0.00017901,2]
[402951356,1769014241032,-709.03488781,0.00017901,2]
[402951358,1769014241041,-288.79873781,0.00017901,2]
[402951360,1769014241050,-198.88482047,0.00017901,2]
[402951362,1769014241060,-198.88482047,0.00017901,2]
[402951364,1769014241069,-583.97306392,0.00017918,2]
[402951366,1769014241078,-153.53248348,0.00017918,2]
[402951368,1769014241088,-500.0,0.00017918,2]
[402951370,1769014241097,-522.45367867,0.00017918,2]
[402951371,1769014241108,-150.0,0.00017918,2]
[402951372,1769014241118,-150.0,0.00017918,2]
[402951373,1769014241127,-500.0,0.00017918,2]
[402951374,1769014241136,-500.0,0.00017918,2]
[402951375,1769014241336,-500.0,0.00017918,2]
[402951376,1769014241346,-655.0,0.00017918,2]
[402951377,1769014241357,-500.0,0.00017918,2]
[402951378,1769014241367,-500.0,0.00017918,2]
[402951379,1769014241375,-378.0,0.00017918,2]
[402951380,1769014241385,-191.31290121,0.00017918,2]
[402951381,1769014241394,-500.0,0.00017918,2]
[402951382,1769014241403,-200.0,0.00017918,2]
[402951383,1769014241411,-200.0,0.00017918,2]
[402951384,1769014241420,-500.0,0.00017918,2]
[402951385,1769014241429,-500.0,0.00017918,2]
[402951386,1769014241438,-472.0,0.00017918,2]
[402951387,1769014241448,-500.0,0.00017918,2]
[402951388,1769014241458,-500.0,0.00017918,2]
[402951389,1769014241468,-616.92694258,0.00017918,2]
[402951390,1769014241477,-200.0,0.00017918,2]
[402951391,1769014241485,-150.0,0.00017918,2]
[402951392,1769014241495,-461.0,0.00017918,2]
[402951393,1769014241504,-150.0,0.00017918,2]
[402951394,1769014241513,-500.0,0.00017918,2]
[402951395,1769014241523,-500.0,0.00017918,2]
[402951396,1769014241532,-500.0,0.00017918,2]
[402951397,1769014241541,-12207.0,0.00017926,2]
[402951398,1769014241550,-169.96,0.00017951,2]
[402951399,1769014241560,-500.0,0.0001797,2]
[402951400,1769014241569,-1000.0,0.0001797,2]
[402951401,1769014241579,-500.0,0.0001797,2]
[402951402,1769014241588,-1000.0,0.0001797,2]
[402951403,1769014241598,-500.0,0.0001797,2]
[402951404,1769014241610,-1000.0,0.0001797,2]
[402951405,1769014241620,-1000.0,0.0001797,2]
[402951406,1769014241631,-694.631145,0.0001797,2]